Cogmind - Beta 16.1 @@@ ROGUE MODE // 2026.02.23 @ 21:00:17 Player: AlmondRoll Result: Destroyed by S-27 Virus with Autogun Performance ------------- Evolutions (6) 3000 Regions Visited (10) 2000 Robots Destroyed (131) 655 Value Destroyed (4949) 4949 Prototype IDs (16) 320 Alien Tech Used (0) 0 Bonus (1938) 1938 TOTAL SCORE: 12862 Bonus ------- High Alert Combat Kills 788 Follower Combat Kills 425 Registered with UFD 300 Met Optimus in HQ 500 Met Imprinter 300 Friendly Fire -375 Cogmind --------- Core Integrity 0/1150 Matter 280/300 Energy 19/100 System Corruption 0% Temperature Cool (0) Movement Core (1450) Ox28 Location -4/Factory Parts ------- > --- POWER (3) -------- (None) > --- PROPULSION (2) --- (None) > --- UTILITY (11) ----- Huge Storage Unit 0b10 Decoder Chip [Scout] Advanced Targeting Computer > --- WEAPON (3) ------- Heavy Beamcaster > --- INVENTORY (25) --- Armored Huge Wheel Centrium Wheel Energy Well (19) Energy Well (0) IFF Parser Experimental Terrain Scanner Precision Energy Filter Precision Energy Filter Graphene Brace High-powered Shock Rifle High-powered Shock Rifle Improved Proton Missile Launcher Datajack CR-A16's Pointy Stick Large Botcube Peak State ------------ > --- POWER ------------ Neutrino Core Neutrino Core Antimatter Reactor > --- PROPULSION ------- Armored Huge Wheel > --- UTILITY ---------- Improved Cryofiber Web Advanced Heat Sink Huge Storage Unit Experimental Terrain Scanner 0b10 Decoder Chip [Scout] Core Analyzer Enhanced Scrap Shield Improved Focal Shield Thermal Shield Force Field > --- WEAPON ----------- Cooled Pulse Rifle Cooled Pulse Rifle Heavy Beamcaster > --- INVENTORY -------- Armored Huge Wheel Centrium Wheel Advanced Heat Sink Energy Well Energy Well IFF Parser Advanced Targeting Computer Precision Energy Filter Precision Energy Filter Graphene Brace High-powered Shock Rifle High-powered Shock Rifle High-powered Shock Rifle High-powered Shock Rifle Phase Gun Advanced Plasma Cannon Advanced Plasma Cannon Advanced Plasma Cannon Advanced Plasma Cannon Improved Proton Missile Launcher Datajack CR-A16's Pointy Stick Large Botcube [Rating: 114] Favorites ----------- Power Light Angular Momentum Engine Engine Light Angular Momentum Engine Power Core Neutrino Core Reactor Antimatter Reactor Propulsion Light Treads Treads Light Treads Leg Aluminum Leg Wheel Armored Huge Wheel Utility Huge Storage Unit Device Improved Cryofiber Web Storage Huge Storage Unit Processor 0b10 Decoder Chip [Scout] Hackware System Shield Protection Enhanced Scrap Shield Weapon Improved Heavy Laser Energy Gun Improved Heavy Laser Energy Cannon Heavy Plasma Cannon Ballistic Gun Light Assault Rifle Launcher Improved Proton Missile Launcher Special Weapon Enhanced Flamer Impact Weapon Great Maul Piercing Weapon CR-A16's Pointy Stick Build | -11 -10 -10 -8 -6 -6 -6 -6 -5 -5 -4 ------- Run | Yrd Mat Sub Scr Fac Low Low Zio Pro Fac Fac Slots Evolved 12 | . . . . 8 . . . . 2 2 Power 2 | . . . . 1 . . . . . 1 Propulsion . | . . . . . . . . . . . Utility 9 | . . . . 6 . . . . 2 1 Weapon 1 | . . . . 1 . . . . . . Parts Attached 110 | 3 7 1 5 37 8 1 8 3 25 12 Power 15 | . 1 1 . 6 . . . 1 5 1 Engine 8 | . 1 1 . 6 . . . . . . Core 5 | . . . . . . . . 1 4 . Reactor 2 | . . . . . . . . . 1 1 Propulsion 11 | 2 1 . 3 2 1 . . 1 1 . Treads 3 | 2 1 . . . . . . . . . Leg . | . . . . . . . . . . . Wheel 8 | . . . 3 2 1 . . 1 1 . Hover . | . . . . . . . . . . . Flight . | . . . . . . . . . . . Utility 48 | . 2 . 2 17 5 . 5 . 13 4 Device 30 | . 1 . 1 14 3 . 1 . 7 3 Storage 5 | . 1 . 1 . 1 . . . 2 . Processor 5 | . . . . . . . 2 . 2 1 Hackware 2 | . . . . . . . . . 2 . Protection 6 | . . . . 3 1 . 2 . . . Artifact . | . . . . . . . . . . . Weapon 36 | 1 3 . . 12 2 1 3 1 6 7 Energy Gun 22 | 1 3 . . 7 2 1 . . 5 3 Energy Cannon 9 | . . . . 4 . . 1 . . 4 Ballistic Gun . | . . . . . . . . . . . Ballistic Cannon . | . . . . . . . . . . . Launcher 1 | . . . . . . . . . 1 . Special Weapon 2 | . . . . . . . 2 . . . Impact Weapon 1 | . . . . 1 . . . . . . Slashing Weapon . | . . . . . . . . . . . Piercing Weapon 1 | . . . . . . . . 1 . . Special Melee Weapon . | . . . . . . . . . . . Unidentified Prototypes 4 | . . . . 1 1 . . . 2 . Corrupted Parts 7 | . 2 . . 2 . . . . 3 . System Corruption 23 | . 6 . . 9 . . . . 8 . Parts Lost 42 | . 5 1 . 12 . . . . 3 21 Power 10 | . 1 1 . 4 . . . . . 4 Propulsion 2 | . 1 . . . . . . . . 1 Utility 11 | . . . . 3 . . . . 1 7 Weapon 19 | . 3 . . 5 . . . . 2 9 Highest Loss Streak 21 | . 3 1 . 4 . . . . 2 21 To Critical Strikes 1 | . . . . 1 . . . . . . Average Backups 22 | 5 10 17 29 28 20 19 19 20 20 19 Power 1 | 1 1 1 2 1 . . . . 1 . Propulsion 3 | 3 4 6 6 3 1 1 1 1 1 1 Utility 10 | . 3 5 11 14 11 11 11 12 11 7 Weapon 6 | 1 1 2 7 8 6 6 6 6 6 9 Tool/Special . | . . . . . . . . . . . Unused Backups 42 | . . . 17 8 5 2 2 . 4 4 Power 3 | . . . 2 . . . . . 1 . Propulsion 9 | . . . 6 . 2 . . . . 1 Utility 15 | . . . 6 7 . . . . 2 . Weapon 14 | . . . 3 1 3 2 2 . 1 2 Tool/Special 1 | . . . . . . . . . . 1 Average Slot Usage (%) 84 | . 89 99 88 85 84 80 78 79 85 73 Engine 11 | . 13 13 14 12 13 13 13 8 . . Core 1 | . . . . . . . . 3 10 7 Treads 6 | . 27 28 9 . . . . . . . Wheel 9 | . . . 18 13 11 6 6 5 5 3 Device 18 | . 10 14 3 28 25 26 25 26 24 22 Storage 9 | . 14 14 13 6 6 6 6 6 5 5 Processor 1 | . . . . . . . . . 10 11 Protection 3 | . . . . 3 6 6 6 6 4 3 Energy Gun 17 | . 18 28 28 12 20 19 12 . 13 10 Energy Cannon 1 | . . . . 6 . . 1 6 1 2 Special Weapon 1 | . . . . . . . 3 13 1 . Peak Build Rating 114 | 6 12 12 22 73 88 88 88 85 101 114 Average Rating 53 | 4 9 11 16 61 80 87 84 84 94 89 On Entrance 51 | 6 6 12 12 21 73 88 87 83 85 98 Avg Prop Armor Cover (%) 2 | . . . 4 . 1 . . . . . Naked Turns . | . . . . . . . . . . . Heaviest Build 252 | 11 93 91 208 252 252 139 136 139 155 172 Greatest Support 40 | 40 40 40 40 30 28 28 28 28 28 28 Greatest Overweight (x) 12 | 3 2 2 12 10 10 4 4 4 5 6 Average Overweight (x) 5 | . 1 2 7 8 6 4 4 4 4 4 Largest Inventory Capacity 35 | 8 25 25 35 35 35 25 25 25 25 25 Average Capacity 27 | 8 23 25 32 35 25 25 25 25 25 25 Most Carried 35 | 6 16 20 35 35 34 25 25 25 25 25 Average Carried 25 | 4 10 17 30 33 25 24 24 25 24 22 Final Capacity 35 | 8 25 25 35 35 25 25 25 25 25 25 Final Carried 35 | 4 16 20 35 34 25 24 25 25 24 17 Scrap Suit Usage (%) 9 | . . . . 25 76 1 1 1 . . Parts Cannibalized 25 | . . . . 21 1 1 . 2 . . Class Distribution -------------------- 24% | Mutant 18% | Hauler-Mutant 17% | Skirmisher 12% | Pyromaniac-Skirmisher 8% | Hauler-Tank 7% | Tank 4% | Hauler-Skirmisher 3% | Scavenger-Skirmisher Dominant Class ---------------- Mutant | -10/Materials Mutant | -10/Subcaves Hauler-Mutant | -8/Scraptown Hauler-Tank | -6/Factory Scavenger-Skirmisher | -6/Lower Caves Skirmisher | -6/Lower Caves Skirmisher | -6/Zion Pyromaniac-Skirmisher | -5/Proximity Caves Tank | -5/Factory Tank | -4/Factory Resources | -11 -10 -10 -8 -6 -6 -6 -6 -5 -5 -4 ----------- Run | Yrd Mat Sub Scr Fac Low Low Zio Pro Fac Fac Matter Collected 3036 | 231 320 25 230 696 377 185 177 40 635 120 Remotely . | . . . . . . . . . . . Salvage Created 8901 | 66 614 105 . 3290 347 415 . 180 3357 527 Parts 248 | 1 36 5 . 94 2 6 . 7 81 16 Haulers Intercepted 8 | . 2 . . 1 . . . . 5 . Recyclers Shooed 13 | . . . . 7 . 1 . . 5 . Parts Field Recycled . | . . . . . . . . . . . Retrieved Matter . | . . . . . . . . . . . Parts Self-Destructed 13 | . . 4 . . 5 . . 4 . . Prevented . | . . . . . . . . . . . Parts Restored . | . . . . . . . . . . . Kills | -11 -10 -10 -8 -6 -6 -6 -6 -5 -5 -4 ------- Run | Yrd Mat Sub Scr Fac Low Low Zio Pro Fac Fac Combat Hostiles Destroyed 76 | . 9 2 . 28 2 . . 1 27 7 Guns 48 | . 8 2 . 16 2 . . . 17 3 Cannons 9 | . . . . 4 . . . 1 . 4 AOE 5 | . . . . 1 . . . . 4 . Classes Destroyed 22 | 1 5 1 . 6 2 2 . . 4 1 Worker 8 | . 1 . . 5 . . . . 2 . Builder 8 | . . . . 6 . . . . 2 . Tunneler 2 | . 1 . . . . . . . 1 . Hauler 8 | . 2 . . 1 . . . . 5 . Recycler 21 | 1 1 . . 11 . . . . 8 . Mechanic 1 | . . . . . . . . . 1 . Operator 3 | . 1 . . 2 . . . . . . Watcher 2 | . . . . . . . . . 2 . Swarmer 4 | . . . . 4 . . . . . . Grunt 43 | . 9 . . 13 . . . 1 15 5 Brawler 2 | . . . . . . . . . 2 . Duelist 3 | . . . . . . . . . 3 . Protector 1 | . . . . . . . . . 1 . Sentry 4 | . . . . 3 . . . . 1 . Specialist 2 | . . . . . . . . . . 2 Hunter 4 | . . . . 3 . . . . 1 . Programmer 8 | . . . . 4 . . . . 4 . Heavy 1 | . . . . 1 . . . . . . Behemoth 1 | . . . . . 1 . . . . . Subdweller 2 | . . 2 . . . . . . . . Packrat 5 | . . . . . 2 3 . . . . Samaritan 6 | . . . . . . 3 . 3 . . Savage 1 | . . . . . . 1 . . . . Guerrilla 1 | . . . . . . . . . 1 . Mutant 1 | . . . . . 1 . . . . . Best Kill Streak 10 | 1 3 1 . 4 1 . . 1 10 4 Combat Bots Only 5 | . 2 1 . 3 1 . . 1 5 4 Max Kills in Single Turn 8 | 1 1 1 . 1 1 1 . 1 8 1 Gunslinging . | . . . . . . . . . . . Exploded 2 | . . . . 1 . . . . 2 . Melee . | . . . . . . . . . . . Uniques/NPCs Destroyed . | . . . . . . . . . . . Combat | -11 -10 -10 -8 -6 -6 -6 -6 -5 -5 -4 -------- Run | Yrd Mat Sub Scr Fac Low Low Zio Pro Fac Fac Hostile Shots Fired 818 | . 59 10 . 202 39 . . 8 170 330 Missed 207 | . 13 . . 65 10 . . 1 45 73 Hits 611 | . 46 10 . 137 29 . . 7 125 257 Melee 12 | . . . . . . . . . 12 . Projectile 599 | . 46 10 . 137 29 . . 7 113 257 Critical Strikes 19 | . 1 . . 6 . . . 1 8 3 Damage Taken 9626 | . 735 267 . 2054 548 . . 181 2308 3533 Core 2083 | . 126 25 . 151 72 . . 19 540 1150 Absorbed by Shields 1197 | . . . . 161 . . . . 725 311 Ignored by Resistances 779 | . . . . 256 21 . . . 205 297 Regen/Repaired (Parts) 328 | . 115 . . 184 10 8 . 11 . . Core Remaining (%) 64 | 100 . . 39 . . . . 71 46 . Volleys Fired 383 | 1 55 10 . 121 21 22 1 16 106 30 Largest 3 | 2 2 2 . 3 3 3 1 3 3 3 Hottest 270 | 70 105 105 . 255 214 195 69 270 191 138 Shots Fired 903 | 2 89 21 . 322 65 61 1 18 263 61 Gun 747 | 2 89 21 . 244 65 60 . . 230 36 Cannon 142 | . . . . 78 . 1 1 16 21 25 Launcher 12 | . . . . . . . . . 12 . Special 2 | . . . . . . . . 2 . . Kinetic 30 | 1 29 . . . . . . . . . Thermal 730 | 1 48 10 . 215 65 61 . 18 251 61 Explosive . | . . . . . . . . . . . Electromagnetic 143 | . 12 11 . 107 . . 1 . 12 . Robot Hit Streak 33 | 2 6 14 . 17 16 7 . 5 33 16 Robot Miss Streak 5 | . 3 1 . 5 3 4 . 1 4 2 Penetration Max . | . . . . . . . . . . . Secondary Targets 6 | . . . . 1 . . . . 5 . Max Gunslinging Chain 1 | . . . . 1 . . . . 1 . Shots Hit Robots 639 | 2 58 16 . 224 42 36 . 12 202 47 Core Hits 301 | 2 24 4 . 109 18 14 . 8 104 18 Critical Kills 2 | . . . . 1 . . . 1 . . Critical Parts Destroyed . | . . . . . . . . . . . Critical Strikes 33 | . 2 . . 16 1 4 . 1 8 1 Burn 30 | . 2 . . 14 1 4 . . 8 1 Meltdown 2 | . . . . 1 . . . 1 . . Corrupt 1 | . . . . 1 . . . . . . Melee Attacks 2 | . . . . . . . . 2 . . Impact . | . . . . . . . . . . . Slashing . | . . . . . . . . . . . Piercing 2 | . . . . . . . . 2 . . Sneak Attacks . | . . . . . . . . . . . Combat Hostiles . | . . . . . . . . . . . Follow-up Attacks . | . . . . . . . . . . . Damage Inflicted 16491 | 21 752 218 . 5190 1121 916 . 380 6695 1198 Guns 10448 | 21 718 218 . 3154 1121 916 . . 3768 532 Cannons 2932 | . . . . 1596 . . . 290 380 666 Explosions 2964 | . . . . 417 . . . . 2547 . Melee 68 | . . . . . . . . 68 . . Ramming 57 | . 34 . . 23 . . . . . . Kinetic 146 | 8 138 . . . . . . . . . Thermal 13531 | 13 493 154 . 3785 1121 916 . 312 5539 1198 Explosive . | . . . . . . . . . . . Electromagnetic 2689 | . 87 64 . 1382 . . . . 1156 . Impact . | . . . . . . . . . . . Slashing . | . . . . . . . . . . . Piercing 68 | . . . . . . . . 68 . . Highest Corruption 17 | . 6 6 . 10 10 10 10 . 17 . Average Corruption 7 | . 5 6 . 9 10 10 10 . 4 . Corruption Purged . | . . . . . . . . . . . Corruption Blocked . | . . . . . . . . . . . Effects 209 | . 45 8 . 40 53 34 3 . 26 . Message Errors 57 | . 14 . . 13 13 8 1 . 8 . Matter Fused 45 | . 10 . . 7 15 7 1 . 5 . Heat Flow Errors 20 | . 3 1 . 2 7 4 1 . 2 . Energy Discharges 20 | . 6 1 . 3 3 5 . . 2 . Parts Rejected 3 | . 2 . . . 1 . . . . . Parts Fused 4 | . . . . 1 . . . . 3 . Data Loss (minor) 29 | . 7 4 . 6 7 2 . . 3 . Data Loss (major) 10 | . 1 . . 3 1 5 . . . . Misfires 10 | . 1 1 . 1 5 . . . 2 . Alerts 4 | . 1 1 . . . 1 . . 1 . Weapon Failures 7 | . . . . 4 1 2 . . . . Overload Shots . | . . . . . . . . . . . Overflow Damage 377 | . . . . 119 . . . 26 232 . Projectiles 94 | . . . . 56 . . . 26 12 . Explosions 283 | . . . . 63 . . . . 220 . Melee . | . . . . . . . . . . . Knockbacks . | . . . . . . . . . . . Impact . | . . . . . . . . . . . Kinetic . | . . . . . . . . . . . Secondary . | . . . . . . . . . . . Self-Inflicted Damage 162 | . . . . 65 . . . . 97 . Shots 4 | . . . . 1 . . . . 3 . Rammed 6 | . 5 . . 1 . . . . . . Targets Rammed 6 | . 5 . . 1 . . . . . . Kicked . | . . . . . . . . . . . Crushed . | . . . . . . . . . . . Highest Temperature 1080 | 30 248 71 . 345 596 588 . 124 1080 362 Average Temperature 144 | 18 77 44 . 76 148 173 . 68 464 153 Received Heat Transfer 2926 | . 351 72 . 572 36 . . 75 458 1362 Effects 17 | . . . . 3 2 3 . . 9 . Energy Bleed 2 | . . . . . 1 . . . 1 . Interference 4 | . . . . 3 . . . . 1 . Matter Decay 2 | . . . . . 1 1 . . . . Short Circuit 2 | . . . . . . 1 . . 1 . Damage (minor) 2 | . . . . . . 1 . . 1 . Damage (major) 2 | . . . . . . . . . 2 . Damage (core) 3 | . . . . . . . . . 3 . Siege Activations . | . . . . . . . . . . . Martial Activations . | . . . . . . . . . . . Shielding Activations . | . . . . . . . . . . . Robots Disrupted . | . . . . . . . . . . . Combat Hostiles . | . . . . . . . . . . . Robots Corrupted 9 | . . . . 4 . . . . 5 . Combat Hostiles 8 | . . . . 3 . . . . 5 . Parts Fried 23 | . . . . 17 . . . . 6 . Impact Corruptions . | . . . . . . . . . . . Robots Melted 11 | . 1 . . 7 . . . 1 2 . Combat Hostiles 6 | . 1 . . 4 . . . . 1 . Parts Melted 99 | . 2 . . 45 3 6 . 2 29 12 Heat Transferred 26200 | 37 1443 370 . 8997 1957 1628 . 610 9085 2073 Parts Sabotaged . | . . . . . . . . . . . Parts Stolen . | . . . . . . . . . . . Parts Stripped . | . . . . . . . . . . . Power Chain Reactions 4 | . . . . 4 . . . . . . Alert | -11 -10 -10 -8 -6 -6 -6 -6 -5 -5 -4 ------- Run | Yrd Mat Sub Scr Fac Low Low Zio Pro Fac Fac Maximum Alert Level 3 | . . . . 2 . . . . 3 2 Low Security (%) 62 | 100 100 . . 60 . . . . 10 . Level 1 10 | . . . . 19 . . . . . 68 Level 2 10 | . . . . 19 . . . . 7 31 Level 3 17 | . . . . . . . . . 81 . Level 4 . | . . . . . . . . . . . Level 5 . | . . . . . . . . . . . High Security . | . . . . . . . . . . . Max Security . | . . . . . . . . . . . Peak Influence 931 | 5 60 . . 553 . . . . 931 437 Initial 437 | . 3 . . . . . . . . 437 Average 257 | 3 6 . . 203 . . . . 769 368 Influence Increases 3334 | 5 273 . . 1152 170 . . 131 1407 196 Destroy 0b10 Robot/C 1660 | . 180 . . 560 100 . . 80 600 140 Destroy 0b10 Robot/NC 275 | 5 30 . . 125 5 . . . 110 . Destroy Leader 398 | . 54 . . 152 20 . . 20 132 20 Allied During Kill 84 | . . . . . 30 . . 31 23 . Successful Hack 49 | . 9 . . 40 . . . . . . Disable Machine 480 | . . . . 165 . . . . 300 15 Anti-Garrison Action 150 | . . . . . . . . . 150 . Destroy Structure 133 | . . . . 35 . . . . 92 6 Lose Combat Pursuer 105 | . . . . 75 15 . . . . 15 Influence Decreases 3051 | . 278 . . 603 719 . . 131 514 806 Entered New Map 662 | . 2 . . . 204 . . . . 456 Time Decay 1954 | . 276 . . 483 495 . . 96 464 140 Lost Part 360 | . . . . 120 . . . . 30 210 Lost Ally 75 | . . . . . 20 . . 35 20 . Squads Dispatched 30 | . 2 . . 11 . . . . 13 4 Investigation 4 | . . . . 2 . . . . 2 . Extermination 7 | . . . . 4 . . . . 3 . Reinforcement 12 | . 2 . . 5 . . . . 3 2 Assault 4 | . . . . . . . . . 4 . Garrison 3 | . . . . . . . . . 1 2 Intercept . | . . . . . . . . . . . Searches Triggered . | . . . . . . . . . . . Construction Impeded 3 | . . . . 1 . . . . 2 . Haulers Reinforced 2 | . . . . 1 . . . . 1 . Active Scanning Responses . | . . . . . . . . . . . Cargo Convoy Interrupts 1 | . . . . 1 . . . . . . Stealth | -11 -10 -10 -8 -6 -6 -6 -6 -5 -5 -4 --------- Run | Yrd Mat Sub Scr Fac Low Low Zio Pro Fac Fac Distress Signals 5 | . . . . 5 . . . . . . Communications Jammed . | . . . . . . . . . . . Distress Signals . | . . . . . . . . . . . Times Spotted 124 | . 25 2 . 43 5 . . 4 33 12 Peak Tracking Total 8 | . 4 1 . 6 4 . . 3 7 8 Tactical Retreats 6 | . . . . 4 1 . . . . 1 Traps | -11 -10 -10 -8 -6 -6 -6 -6 -5 -5 -4 ------- Run | Yrd Mat Sub Scr Fac Low Low Zio Pro Fac Fac Traps Triggered 3 | . 2 . . 1 . . . . . . Indirectly . | . . . . . . . . . . . Trap Hack Attempts . | . . . . . . . . . . . Triggered . | . . . . . . . . . . . Disarmed . | . . . . . . . . . . . Reprogrammed . | . . . . . . . . . . . Reused . | . . . . . . . . . . . Traps Extracted . | . . . . . . . . . . . Installed . | . . . . . . . . . . . Triggered . | . . . . . . . . . . . Machines | -11 -10 -10 -8 -6 -6 -6 -6 -5 -5 -4 ---------- Run | Yrd Mat Sub Scr Fac Low Low Zio Pro Fac Fac Machines Disabled 35 | . . . . 11 1 . 1 . 21 1 Max in Single Turn 20 | . . . . 6 1 . 1 . 20 1 Garrison Access 1 | . . . . . . . . . 1 . Machines Repaired . | . . . . . . . . . . . Machines Dismantled . | . . . . . . . . . . . Machines Sabotaged . | . . . . . . . . . . . Overloaded Fab Kills . | . . . . . . . . . . . Hacking | -11 -10 -10 -8 -6 -6 -6 -6 -5 -5 -4 --------- Run | Yrd Mat Sub Scr Fac Low Low Zio Pro Fac Fac Machines Accessed 18 | . 4 . 4 6 . 1 . . 2 1 Terminals 4 | . 1 . . 3 . . . . . . Fabricators . | . . . . . . . . . . . Repair Stations 1 | . 1 . . . . . . . . . Recycling Units 6 | . 2 . . 2 . . . . 2 . Scanalyzers 2 | . . . . 1 . . . . . 1 Garrison Access . | . . . . . . . . . . . Total Hacks 38 | . 7 . 9 14 . 1 . . 5 2 Successful 25 | . 4 . 9 7 . 1 . . 3 1 Failed 12 | . 3 . . 6 . . . . 2 1 Catastrophic 4 | . 1 . . 2 . . . . . 1 Database Lockouts 1 | . . . . 1 . . . . . . Manual 10 | . 1 . . 5 . . . . 4 . Terminals 6 | . 1 . . 5 . . . . . . Fabricators . | . . . . . . . . . . . Repair Stations 2 | . 2 . . . . . . . . . Recycling Units 13 | . 4 . . 4 . . . . 5 . Scanalyzers 7 | . . . . 5 . . . . . 2 Garrison Access . | . . . . . . . . . . . Terminal Hacks 11 | . . . 9 1 . 1 . . . . Record 8 | . . . 8 . . . . . . . Robot Analysis 1 | . . . . 1 . . . . . . Open Door 1 | . . . . . . 1 . . . . Proto ID Catalog 1 | . . . 1 . . . . . . . Fabricator Hacks . | . . . . . . . . . . . Repair Station Hacks 2 | . 2 . . . . . . . . . Scan Component 1 | . 1 . . . . . . . . . Repair 1 | . 1 . . . . . . . . . Recycling Unit Hacks 3 | . 1 . . 1 . . . . 1 . Retrieve Components 3 | . 1 . . 1 . . . . 1 . Scanalyzer 3 | . . . . 2 . . . . . 1 Retrieve Study 3 | . . . . 2 . . . . . 1 Garrison Access Hacks . | . . . . . . . . . . . Unauthorized Hacks 6 | . 1 . . 3 . . . . 2 . Terminals 2 | . 1 . . 1 . . . . . . Botnet 1 | . . . . 1 . . . . . . Operators 1 | . 1 . . . . . . . . . Fabricators . | . . . . . . . . . . . Repair Stations . | . . . . . . . . . . . Recycling Units 4 | . . . . 2 . . . . 2 . Fedlink 4 | . . . . 2 . . . . 2 . Scanalyzers . | . . . . . . . . . . . Garrison Access . | . . . . . . . . . . . Data Cores Recovered . | . . . . . . . . . . . Used . | . . . . . . . . . . . Hacking Detections 10 | . 3 . . 5 . . . . 1 1 Full Trace Events 1 | . 1 . . . . . . . . . Feedback Events . | . . . . . . . . . . . Feedback Blocked . | . . . . . . . . . . . Robot Schematics Acquired . | . . . . . . . . . . . Robots Built . | . . . . . . . . . . . Authchips . | . . . . . . . . . . . Time . | . . . . . . . . . . . Total Robot Build Rating . | . . . . . . . . . . . Part Schematics Acquired . | . . . . . . . . . . . Parts Built . | . . . . . . . . . . . Authchips . | . . . . . . . . . . . Time . | . . . . . . . . . . . Total Part Build Rating . | . . . . . . . . . . . Part Studies Acquired 3 | . . . . 2 . . . . . 1 Parts Repaired 1 | . 1 . . . . . . . . . Time 26 | . 26 . . . . . . . . . Parts Recycled . | . . . . . . . . . . . Recycled Matter . | . . . . . . . . . . . Retrieved Matter . | . . . . . . . . . . . Retrieved Components 16 | . 3 . . 7 . . . . 6 . Parts Scanalyzed . | . . . . . . . . . . . Part Schematics Acquired . | . . . . . . . . . . . Parts Damaged . | . . . . . . . . . . . Bothacking | -11 -10 -10 -8 -6 -6 -6 -6 -5 -5 -4 ------------ Run | Yrd Mat Sub Scr Fac Low Low Zio Pro Fac Fac Used RIF Installer . | . . . . . . . . . . . Robots Hacked . | . . . . . . . . . . . Non-combat . | . . . . . . . . . . . Combat . | . . . . . . . . . . . Robot Hacks Applied . | . . . . . . . . . . . Relay Couplers Released 1 | . . . . . . . . . 1 . Machine Destruction 1 | . . . . . . . . . 1 . Fabnet Peak Effective % . | . . . . . . . . . . . Robots Rewired 4 | . . . . . 4 . . . . . Allies Hacked . | . . . . . . . . . . . Hacks Repelled . | . . . . . . . . . . . Allies | -11 -10 -10 -8 -6 -6 -6 -6 -5 -5 -4 -------- Run | Yrd Mat Sub Scr Fac Low Low Zio Pro Fac Fac Total Allies 9 | . . . . . 4 . 5 . . . Largest Group 8 | . . . . . 4 3 8 8 3 . Highest-Rated Group 230 | . . . . . 116 87 230 230 91 . Highest-Rated Ally 39 | . . . . . 29 29 39 39 34 . Initial UFD Resources 57 | . . . . 22 36 36 36 40 40 57 Total Orders . | . . . . . . . . . . . Ally Attacks 92 | . . . . . 37 . . 30 25 . Total Damage 1453 | . . . . . 515 . . 476 462 . Kills 12 | . . . . . 4 . . 3 5 . Allies Corrupted . | . . . . . . . . . . . Allies Melted . | . . . . . . . . . . . Intel | -11 -10 -10 -8 -6 -6 -6 -6 -5 -5 -4 ------- Run | Yrd Mat Sub Scr Fac Low Low Zio Pro Fac Fac Active Infowar (turns) 8585 | . . . 7 1116 1051 941 2356 1513 1319 282 Sensors 879 | . . . . 105 774 . . . . . IFF 5316 | . . . . . 267 940 2333 1513 167 96 Terrain 7254 | . . . . 1116 1051 940 2356 1513 181 97 Seismic 675 | . . . . 675 . . . . . . Decoding 1584 | . . . . . . . 1 . 1301 282 Jamming 11 | . . . . 11 . . . . . . ECM 7 | . . . 7 . . . . . . . Robot Analysis Total 1 | . . . . 1 . . . . . . Derelict Logs Recovered 9 | . . . 2 . 2 2 1 2 . . Drone Launches . | . . . . . . . . . . . Drone Recoveries . | . . . . . . . . . . . Decoded 0b10 Intel 12 | . . . . . . . . . 5 7 Traps 7 | . . . . . . . . . 2 5 Emergency Access 4 | . . . . . . . . . 2 2 Exits 1 | . . . . . . . . . 1 . Exploration | -11 -10 -10 -8 -6 -6 -6 -6 -5 -5 -4 ------------- Run | Yrd Mat Sub Scr Fac Low Low Zio Pro Fac Fac Turns Passed 16907 | 18 2319 312 4237 2231 1372 948 2356 1513 1319 282 Spaces Moved 7566 | 6 682 87 1693 871 648 553 1464 962 514 86 Core 1 | 1 . . . . . . . . . . Treads 1166 | 5 682 87 392 . . . . . . . Legs . | . . . . . . . . . . . Wheels 6399 | . . . 1301 871 648 553 1464 962 514 86 Hover . | . . . . . . . . . . . Flight . | . . . . . . . . . . . Fastest Speed 135 | 160 160 320 160 169 140 150 150 150 150 135 Average Speed 195 | 166 304 320 245 184 182 150 150 150 164 164 Slowest Speed 560 | 200 320 320 560 205 210 150 150 150 165 180 Overloaded Moves . | . . . . . . . . . . . Propulsion Burnouts . | . . . . . . . . . . . Robots Hopped . | . . . . . . . . . . . Potential Cave-ins . | . . . . . . . . . . . Cave-ins Triggered . | . . . . . . . . . . . Exploration Rate (%) 49 | 2 92 11 91 25 78 68 85 84 9 2 Regions Visited 10 Branch Regions 6 Pre-discovered Areas 6 | . . . 1 1 . 1 2 1 . . Known Exits Taken 2 | . . . . . . . . 1 1 . Unknown Exits Taken 8 | 1 1 1 1 1 1 1 1 . . . Scrap Searched 20 | . . . 7 . 3 2 5 3 . . Spaces Dug 7 | . . . . . . 1 . 5 . 1 Terrain Destroyed 79 | . . . . 27 . 1 . 6 43 2 Melee . | . . . . . . . . . . . Projectile 17 | . . . . 6 . 1 . 6 2 2 AOE 62 | . . . . 21 . . . . 41 . Terrain Rammed . | . . . . . . . . . . . Walls Destroyed . | . . . . . . . . . . . Machines Disabled . | . . . . . . . . . . . Actions | -11 -10 -10 -8 -6 -6 -6 -6 -5 -5 -4 --------- Run | Yrd Mat Sub Scr Fac Low Low Zio Pro Fac Fac Total 8955 | 13 836 102 1785 1222 785 623 1626 1012 777 174 Wait 497 | . 68 1 7 114 53 35 122 23 43 31 Move 7556 | 5 681 86 1692 870 647 552 1463 961 513 86 Hop . | . . . . . . . . . . . Pick Up 158 | . 16 4 56 31 12 3 4 2 26 4 Fast Attach 47 | 2 5 . 2 6 5 . 15 1 10 1 Attach 53 | . 5 1 . 19 6 1 . . 10 11 Detach 3 | . 1 . . . . . 1 . . 1 Swap 109 | 1 . . 3 36 13 6 2 3 37 8 Drop 129 | 4 . . 25 24 16 4 18 4 32 2 Fire 383 | 1 55 10 . 121 21 22 1 16 106 30 Melee 2 | . . . . . . . . 2 . . Ram 1 | . . . . 1 . . . . . . Kick . | . . . . . . . . . . . Crush 5 | . 5 . . . . . . . . . Escape Stasis . | . . . . . . . . . . . Rewire 12 | . . . . . 12 . . . . . Trap . | . . . . . . . . . . . Miscellaneous . | . . . . . . . . . . . Route ------- -11/Scrapyard -10/Materials (discovered 5 exits: [*Mat x3] / [*Min] / [*Sub]) -10/Subcaves -8/Scraptown -6/Factory -6/Lower Caves -6/Lower Caves (discovered 2 exits: *Fac / *Zio) -6/Zion (discovered 2 exits: [Dee] / [*Pro]) -5/Proximity Caves -5/Factory (discovered 3 exits: *Fac x3) -4/Factory History --------- Turn | Location | Event 8 | -11/Scrapyard | Discovered new exit (range 1) 19 | -11/Scrapyard | Entered Materials 257 | -10/Materials | Discovered new exit (range 16) 306 | -10/Materials | Build established: Mutant 583 | -10/Materials | Lost 3 parts (1n2w) 626 | -10/Materials | Discovered new exit (range 10) 777 | -10/Materials | Repaired Lgt. Treads 867 | -10/Materials | Discovered new exit (range 10) 971 | -10/Materials | Discovered new exit (range 16) 1394 | -10/Materials | Core integrity fell below 50% 1527 | -10/Materials | Discovered new exit (range 10) 2338 | -10/Materials | Entered Subcaves 2339 | -10/Subcaves | Approached by a straggling Scientist 2588 | -10/Subcaves | Scientist uncovered a shortcut to Scraptown 2650 | -10/Subcaves | Entered Scraptown 2650 | -8/Scraptown | System corruption cleaned by C-Scrubber 3278 | -8/Scraptown | Scanned Subdweller tech in exchange for log data 3287 | -8/Scraptown | Learned location of Quarantine (-2) 3291 | -8/Scraptown | Learned Factory emergency access door positions 3537 | -8/Scraptown | Visited Fellowship of the Rings 3598 | -8/Scraptown | Visited Bundlers 4033 | -8/Scraptown | Build established: Hauler-Mutant 4183 | -8/Scraptown | Visited Spacefarers 4350 | -8/Scraptown | Visited SPCMW 4382 | -8/Scraptown | Visited CPS Storage 4431 | -8/Scraptown | Visited UFD Registry 4431 | -8/Scraptown | Registered with UFD as "Shadowrunner" 4456 | -8/Scraptown | Visited Cyclists 4469 | -8/Scraptown | Entered Cyclist Reading Room 4522 | -8/Scraptown | Visited Red Mages 4941 | -8/Scraptown | Visited Botcube Research 4982 | -8/Scraptown | Visited Scrap Suit Storage 5009 | -8/Scraptown | Visited Infowarlord's Domain 5058 | -8/Scraptown | Delivered Scrap Shield to a Scientist 5238 | -8/Scraptown | Visited Junk Repository 5265 | -8/Scraptown | Visited Derelict Rescue Squad 5307 | -8/Scraptown | Visited Sword Containment 5329 | -8/Scraptown | Visited Science Guys 5428 | -8/Scraptown | Visited Abandonware Association 5467 | -8/Scraptown | Learned abandonware demo "ERRANTS.EXE" 5530 | -8/Scraptown | Visited Curators Association 5562 | -8/Scraptown | Visited Junk Repository 5677 | -8/Scraptown | Found Scrap Suit 5682 | -8/Scraptown | Found Scrap Suit 5737 | -8/Scraptown | Found Lrg. Botcube 5803 | -8/Scraptown | Found Exp. Terrain Scanner 6717 | -8/Scraptown | Found DRS Beacon 6793 | -8/Scraptown | Met Optimus 6793 | -8/Scraptown | Accepted into 0bPrime 6883 | -8/Scraptown | Discovered new exit (range 3) 6887 | -8/Scraptown | Entered Factory 6887 | -6/Factory | Evolved 8 slots: Power x1, Utility x6, Weapon x1 7161 | -6/Factory | Loaded intel: 8 recycling unit locations 7186 | -6/Factory | Build established: Hauler-Skirmisher 7733 | -6/Factory | Cargo convoy interrupted 7775 | -6/Factory | Discovered new exit (range 13) 8074 | -6/Factory | Learned location of Protoforge (-2) 8088 | -6/Factory | Build established: Hauler-Tank 8173 | -6/Factory | Lost 4 parts (2p1u1w) 8245 | -6/Factory | System corruption reached 10% 8278 | -6/Factory | Lost 3 parts (1p1u1w) 8561 | -6/Factory | Central database locked down 9118 | -6/Factory | Entered Lower Caves 9120 | -6/Lower Caves | UFD Scientist delivered a prototype 9129 | -6/Lower Caves | Found Prototype Protection 9129 | -6/Lower Caves | Identified Enh. Scrap Shield 9410 | -6/Lower Caves | Spotted B-75 Beast 9440 | -6/Lower Caves | Destroyed B-75 Beast 9654 | -6/Lower Caves | Learned Factory stockpile data 9851 | -6/Lower Caves | Attacked by a delusional Derelict stockpiling Unaware 10116 | -6/Lower Caves | Learned location of 1 exit from Proximity Caves 10287 | -6/Lower Caves | Build established: Skirmisher 10354 | -6/Lower Caves | Discovered new exit (range 10) 10490 | -6/Lower Caves | Entered another Lower Caves area 10490 | -6/Lower Caves | Accompanied by 3 allies 10658 | -6/Lower Caves | Discovered new exit (range 11) 11303 | -6/Lower Caves | Learned location of Extension (-4) 11396 | -6/Lower Caves | Discovered new exit (range 9) 11438 | -6/Lower Caves | Entered Zion 11438 | -6/Zion | Accompanied by 3 allies 11516 | -6/Zion | System corruption cleaned by Quarantine Array 11596 | -6/Zion | Found CR-A16's Pointy Stick 11786 | -6/Zion | Discovered new exit (range 8) 11937 | -6/Zion | Learned location of Warlord (-5) 12379 | -6/Zion | Gained Derelict followers 12383 | -6/Zion | Learned location of 1 exit from Factory 12755 | -6/Zion | Turned away by Imprinter 12885 | -6/Zion | Discovered new exit (range 21) 13511 | -6/Zion | Build established: Pyromaniac-Skirmisher 13794 | -6/Zion | Entered Proximity Caves 13794 | -5/Proximity Caves | Accompanied by 8 allies 13795 | -5/Proximity Caves | Identified exit to Factory 14219 | -5/Proximity Caves | Spotted B-75 Beast 14247 | -5/Proximity Caves | Allies destroyed B-75 Beast 14291 | -5/Proximity Caves | Lost 5 allies 14835 | -5/Proximity Caves | Learned 4 Factory zone layouts 15307 | -5/Proximity Caves | Entered Factory 15307 | -5/Factory | Accompanied by 3 allies 15307 | -5/Factory | Evolved 2 slots: Utility x2 15308 | -5/Factory | Identified exit to Factory 15419 | -5/Factory | Garrison activated, responded to threat 15579 | -5/Factory | Core integrity fell below 50% 15816 | -5/Factory | Build established: Tank 15903 | -5/Factory | Loaded intel: 8 recycling unit locations 16507 | -5/Factory | First assault squad dispatched 16623 | -5/Factory | System corruption reached 10% 16626 | -5/Factory | Entered another Factory area 16626 | -4/Factory | Evolved 2 slots: Power x1, Utility x1 16789 | -4/Factory | Garrison activated, responded to threat 16860 | -4/Factory | Core integrity fell below 50% 16887 | -4/Factory | Core integrity fell below 20% 16908 | -4/Factory | Destroyed by S-27 Virus with Autogun Last Messages --------------- 16854_ U-05 Engineer destroyed. 16856_ X-77 Beamer suffers critical hit (Burn). 16857_ Acquired Unknown Reactor. 16857_ Identified Lgt. Antimatter Reactor. 16867_ Lgt. Antimatter Reactor destroyed. 16867_ Adv. Plasma Cannon+ destroyed. 16869_ Gatling Laser melted. 16869_ Adv. Coolant Injector melted. 16869_ X-77 Beamer destroyed. 16871_ Core Analyzer destroyed. 16871_ X-77 Beamer destroyed. 16887_ >> DECODED: Chute Trap location. 16892_ Adv. Plasma Cannon+ destroyed. 16900_ G-67 Veteran heat spikes uncontrollably. 16900_ G-67 Veteran suffers critical hit (Burn). 16901_ G-67 Veteran heat damages core (-18). 16901_ G-67 Veteran overheating. 16903_ G-67 Veteran heat short circuits Unknown Energy Gun. 16903_ G-67 Veteran overheating. 16905_ G-67 Veteran destroyed. Map ----- +----------------------------------------------------+ | | | | | | | | | ?????????????????????????????????????????????? | | ?????????????????????????????????????????????? | | ???????????????????????+?????????????????????? | | ?????????????????????????????????????????????? | | ???????^?????????????????????????????????????? | | ??????????^?????????????? ??" ???????????????? | | ????????????????????????? ???????????????????? | | ??????????????????? ????? ??????? ???????????? | | ????????????????????????? ????? ????????????? | | ?????????????????????????+#????##+????????#??? | | ????????????????????????# #???? ?????????? | | ??????????????????????### ###?? #????????? | | ????????????????????### =#?? #??#??#??? | | ??????????????"???? ?? #?? #???#????? | | ??????????????? ?????? ?? #????????? | | ? ????????????????? ??? g ??? #????????? | | ??? ??????#???????????? g #?# ^ ^^#?????#??? | | ???????????????????######s##??# #????????? | | ??????????????? ???# !![%!s#??# #####????? | | ????????????? ?????# "*|!#??# # ????? | | ?? ????????????????# """"[%#??# # "????? | | ???????????????? ??#=""""@%##?# # "????? | | ?"?????????#???????#!!=%%![##?# # ""???? | | ????????? ???? ????#=!=%["%##?# # ???? | | ??????????????????#["""""!#??# # """??# | | ???????????????????# """"" #### # """ ? | | ???????? ??????? ??# # # """ ?# | | ?"?? ???? ???? ??###########+## # # | | ?????????? ??? ??# # # """ # | | ?????????????? ??# """" "" # # """ # | | ?????????? ?? ???# """" """ # # """ # | | ??+??????????????# """" S" # # # | | ????????? ???????# """" """ # # """ # | | ?????????????????# """" """ + # """ # | | ?????????? ????? # """" # + """ # | | ?? ??????????????# """" # # # | | ????????????? ?? # # # # | | ???????????? ????# # ########## | | ???????????? ????# ! # #????#?? | | ???????? ????? ??# # #??????? | | ?????????????????############## #??????? | | ?????? ??????????#????????????# #??????? | | ?????? ??????? ??????????##??# ###???#? | | ??????? ??????????#???????????####+####?????#? | | ???????????????????????????????? ???????#? | | ? ????????????? ?#?????????##? ??#???# | +----------------------------------------------------+ Best States ------------- Heat Dissipation 103 Energy Generation 49 Energy Capacity 1105 Matter Stores 300 Matter Capacity 300 Sight Range 16 Robot Scan Range 16 Terrain Scan Range 30 Terrain Scan Density 10 ECM Strength 2 Jamming Range 12 Additional Mass Support 6 Base Temperature (-) 150 Armor Coverage 800 Resistance: KI 25 Resistance: TH 20 Utility Shielding 66 Evasion (%) 40 Targeting Accuracy 8 Core Analysis 6 Recoil Reduction 2 Energy Filtering 75 Defensive Hacking 10 Item Schematics ----------------- None Robot Schematics ------------------ None Fabricated ------------ Nothing Repaired ---------- Lgt. Treads | 17% | -10/Materials Studied --------- Arm. Huge Wheel | -6/Factory | Hacked Com. Wheel | -6/Factory | Hacked Adv. Plasma Cannon | -4/Factory | Hacked Alien Tech Used ----------------- None Achievements -------------- Hydra Challenges ------------ None Game ------ Seed GrenadeThermicMeganuke Manual? 0 Play Time 02:19:09 Cumulative 491.1 hours Start 2026.02.23 @ 18:21:42 End 2026.02.23 @ 21:00:17 Sessions 1 Manual Loads 0 Difficulty Rogue Special Mode None Game No. 230 Rogue 230 Adventurer 0 Explorer 0 Win Type - Total 15 Types 8/0/5/2/0/0/0/0/0/0 Lore% 80 Gallery% 74 Achievement% 57 Wizard Run 0 Options --------- Layout 0 ASCII 0 Keyboard 0 Movement Numpad Keybinds 0 Fullscreen 1 Font 18/SmallcapsGlow Map View 76x50 Zoom Use 0% Tactical HUD 1 Map Filters NONE Filters NONE Steam 1 RUN: 967fe6f2-054f-4165-822c-190287ef09a5